fUSD/lending_fUSD_20250716
["ID","MTS","AMOUNT","RATE_DAILY","PERIOD"]
[372444925,1752646281963,-460.0,0.00022054,2]
[372444926,1752646281974,-8205.84,0.00022054,2]
[372444927,1752646281983,-16619.12,0.00022054,2]
[372444928,1752646281996,-1988.22,0.00022054,2]
[372444929,1752646282007,-492.33791323,0.00022054,2]
[372444930,1752646282016,-3242.08,0.00022054,2]
[372444931,1752646282026,-2922.38,0.00022054,2]
[372444932,1752646282035,-2182.9,0.00022054,2]
[372444933,1752646282045,-1093.04,0.00022054,2]
[372444934,1752646282055,-804.77,0.00022054,2]
[372444935,1752646282066,-445.37146412,0.00022054,2]
[372444936,1752646282076,-2543.16,0.00022054,2]
[372444937,1752646282087,-460.0,0.00022054,2]
[372444938,1752646282096,-460.0,0.00022054,2]
[372444939,1752646282108,-1940.05,0.00022054,2]
[372444940,1752646282117,-4675.01,0.00022054,2]
[372444941,1752646282127,-790.4,0.00022054,2]
[372444942,1752646282139,-460.0,0.00022054,2]
[372444943,1752646282149,-597.69,0.00022054,2]
[372444944,1752646282158,-510.25,0.00022054,2]
[372444945,1752646282168,-463.5,0.00022054,2]
[372444946,1752646282178,-1510.95,0.00022054,2]
[372444947,1752646282187,-460.0,0.00022054,2]
[372444948,1752646282196,-10125.01,0.00022054,2]
[372444949,1752646282206,-3687.63,0.00022054,2]
[372444950,1752646282216,-463.326194,0.00022054,2]
[372444951,1752646282226,-5125.17,0.00022054,2]
[372444952,1752646282236,-8609.03,0.00022054,2]
[372444953,1752646282246,-4419.11,0.00022054,2]
[372444954,1752646282256,-461.78979739,0.00022054,2]
[372444955,1752646282265,-1588.61,0.00022054,2]
[372444956,1752646282275,-1789.37,0.00022054,2]
[372444957,1752646282284,-1221.41,0.00022054,2]
[372444958,1752646282294,-460.0,0.00022054,2]
[372444959,1752646282304,-2793.35,0.00022054,2]
[372444960,1752646282314,-464.78,0.00022054,2]
[372444961,1752646282324,-831.39,0.00022054,2]
[372444962,1752646282333,-608.97,0.00022054,2]
[372444963,1752646282343,-3496.09,0.00022054,2]
[372444964,1752646282352,-24151.71,0.00022054,2]
[372444965,1752646282362,-3019.44,0.00022054,2]
[372444966,1752646282373,-460.0,0.00022054,2]
[372444967,1752646282383,-3485.77,0.00022054,2]
[372444968,1752646282393,-460.0,0.00022054,2]
[372444969,1752646282403,-460.0,0.00022054,2]
[372444970,1752646282412,-2019.7,0.00022054,2]
[372444971,1752646282421,-2205.92,0.00022054,2]
[372444972,1752646282431,-460.0,0.00022054,2]
[372444973,1752646282440,-6145.76,0.00022054,2]
[372444974,1752646282449,-6408.09,0.00022054,2]
[372444975,1752646282458,-460.0,0.00022054,2]
[372444976,1752646282468,-460.0,0.00022054,2]
[372444977,1752646282478,-1816.2,0.00022054,2]
[372444978,1752646282487,-590.9888281,0.00022054,2]
[372444979,1752646282497,-460.0,0.00022054,2]
[372444980,1752646282506,-460.0,0.00022054,2]
[372444981,1752646282516,-614.76,0.00022054,2]
[372444982,1752646282525,-3085.2,0.00022054,2]
[372444983,1752646282535,-3330.2,0.00022054,2]
[372444984,1752646282544,-1280.66,0.00022054,2]
[372444985,1752646282553,-460.0,0.00022054,2]
[372444986,1752646282563,-10427.53,0.00022054,2]
[372444987,1752646282573,-1185.65,0.00022054,2]
[372444988,1752646282583,-460.0,0.00022054,2]
[372444989,1752646282594,-2547.63,0.00022054,2]
[372444990,1752646282605,-553.71,0.00022054,2]
[372444991,1752646282615,-460.0,0.00022054,2]
[372444992,1752646282625,-4007.82,0.00022054,2]
[372444993,1752646282635,-460.0,0.00022054,2]
[372444994,1752646282644,-3129.7,0.00022054,2]
[372444995,1752646282654,-460.0,0.00022054,2]
[372444996,1752646282664,-3482.66,0.00022054,2]
[372444997,1752646282674,-1602.76,0.00022054,2]
[372444998,1752646282685,-460.0,0.00022054,2]
[372444999,1752646282695,-496.61,0.00022054,2]
[372445000,1752646282706,-4992.29,0.00022054,2]
[372445001,1752646282716,-460.0,0.00022054,2]
[372445002,1752646282726,-26583.13,0.00022054,2]
[372445003,1752646282736,-2272.32,0.00022054,2]
[372445004,1752646282745,-2045.5,0.00022054,2]
[372445005,1752646282755,-460.0,0.00022054,2]
[372445006,1752646282765,-639.26,0.00022054,2]
[372445007,1752646282775,-460.0,0.00022054,2]
[372445008,1752646282786,-1039.32,0.00022054,2]
[372445009,1752646282797,-460.0,0.00022054,2]
[372445010,1752646282810,-669.11,0.00022054,2]
[372445011,1752646282820,-936.84,0.00022054,2]
[372445012,1752646282830,-527.03608257,0.00022054,2]
[372445013,1752646282839,-7152.75,0.00022054,2]
[372445014,1752646282849,-460.0,0.00022054,2]
[372445015,1752646282859,-883.1,0.00022054,2]
[372445016,1752646282869,-1298.12,0.00022054,2]
[372445017,1752646282880,-464.67087195,0.00022054,2]
[372445018,1752646282892,-460.0,0.00022054,2]
[372445019,1752646282902,-3082.4,0.00022054,2]
[372445020,1752646282911,-960.71,0.00022054,2]
[372445021,1752646282921,-460.76875732,0.00022054,2]
[372445022,1752646282930,-5622.34,0.00022054,2]
[372445023,1752646282940,-889.54,0.00022054,2]
[372445024,1752646282950,-8120.17,0.00022054,2]
[372445025,1752646282960,-3951.2,0.00022054,2]
[372445026,1752646282971,-460.0,0.00022054,2]
[372445027,1752646282980,-460.0,0.00022054,2]
[372445028,1752646282989,-1871.5,0.00022054,2]
[372445029,1752646282999,-461.38896972,0.00022054,2]
[372445030,1752646283008,-460.0,0.00022054,2]
[372445031,1752646283017,-423.65,0.00022054,2]
[372445032,1752646283026,-460.0,0.00022054,2]
[372445033,1752646283036,-3064.64,0.00022054,2]
[372445034,1752646283045,-915.16,0.00022054,2]
[372445035,1752646283055,-460.0,0.00022054,2]
[372445036,1752646283067,-420.92966712,0.00022054,2]
[372445037,1752646283078,-2226.92,0.00022054,2]
[372445038,1752646283090,-460.0,0.00022054,2]
[372445039,1752646283099,-540.49,0.00022054,2]
[372445040,1752646283110,-2342.93,0.00022054,2]
[372445041,1752646283120,-4436.64,0.00022054,2]
[372445042,1752646283130,-1900.67,0.00022054,2]
[372445043,1752646283139,-1423.76,0.00022054,2]
[372445044,1752646283149,-519.89,0.00022054,2]
[372445045,1752646283159,-2142.13,0.00022054,2]
[372445046,1752646283168,-1372.71,0.00022054,2]
[372445047,1752646283177,-468.5211122,0.00022054,2]
[372445048,1752646283187,-7001.34,0.00022054,2]
[372445049,1752646283197,-1158.56,0.00022054,2]
[372445050,1752646283206,-1971.91,0.00022054,2]
[372445051,1752646283216,-460.0,0.00022054,2]
[372445052,1752646283228,-7794.48,0.00022054,2]
[372445053,1752646283238,-3925.58,0.00022054,2]
[372445054,1752646283248,-460.0,0.00022054,2]
[372445055,1752646283258,-1813.16,0.00022054,2]
[372445056,1752646283268,-537.92,0.00022054,2]
[372445057,1752646283278,-2804.15,0.00022054,2]
[372445058,1752646283288,-946.12,0.00022054,2]
[372445059,1752646283299,-460.0,0.00022054,2]
[372445060,1752646283309,-460.0,0.00022054,2]
[372445061,1752646283319,-10596.27,0.00022054,2]
[372445062,1752646283329,-1340.56,0.00022054,2]
[372445063,1752646283339,-460.0,0.00022054,2]
[372445064,1752646283349,-460.0,0.00022054,2]
[372445065,1752646283359,-3659.1,0.00022054,2]
[372445066,1752646283369,-651.94,0.00022054,2]
[372445067,1752646283379,-460.0,0.00022054,2]
[372445068,1752646283389,-460.0,0.00022054,2]
[372445069,1752646283398,-717.44,0.00022054,2]
[372445070,1752646283408,-460.0,0.00022054,2]
[372445071,1752646283418,-5905.09,0.00022054,2]
[372445072,1752646283428,-547.02265436,0.00022054,2]
[372445073,1752646283437,-460.0,0.00022054,2]
[372445074,1752646283447,-1777.35655882,0.00022054,2]
[372445075,1752646283465,-696.36225532,0.00022054,2]
[372445076,1752646284200,-460.0,0.00021917,2]
[372445077,1752646284210,-291.0,0.00021917,7]
[372445078,1752646284223,-167.6951431,0.00021917,7]
[372445079,1752646284232,-151.0,0.00021917,2]
[372445080,1752646284242,-151.0,0.00021917,2]
[372445081,1752646284252,-458.6951431,0.00021918,3]
[372445082,1752646284262,-447.36118586,0.00022054,2]
[372445083,1752646284272,-460.0,0.00022054,2]
[372445084,1752646284281,-461.43019228,0.00022054,2]
[372445085,1752646284291,-766.50801956,0.00022054,2]
[372445086,1752646284345,-2850.10739996,0.00022054,2]
[372445087,1752646284409,-1553.09458048,0.00022054,2]
[372445088,1752646284419,-460.0,0.00022054,2]
[372445089,1752646284428,-250.0,0.00022054,2]
[372445090,1752646284437,-460.0,0.00022054,2]
[372445091,1752646284447,-7879.46,0.00022054,2]
[372445092,1752646284456,-8988.35,0.00022054,2]
[372445093,1752646284465,-528.17,0.00022054,2]
[372445094,1752646284476,-13275.21929275,0.00022054,2]
[372445095,1752646284503,-1760.20070725,0.00022054,2]
[372445096,1752646284513,-2555.41,0.00022054,2]
[372445097,1752646284522,-698.12,0.00022054,2]
[372445098,1752646284531,-461.1936072,0.00022054,2]
[372445099,1752646284543,-0.7363928,0.00022054,2]
[372445100,1752646284552,-1311.28,0.00022054,2]
[372445101,1752646284561,-2033.57,0.00022054,2]
[372445102,1752646284571,-568.71,0.00022054,2]
[372445103,1752646284581,-568.71,0.00022054,2]
[372445104,1752646284590,-434.4064072,0.00022054,2]
[372445105,1752646284601,-25.5935928,0.00022054,2]
[372445106,1752646284610,-568.71,0.00022054,2]
[372445107,1752646284620,-460.0,0.00022054,2]
[372445108,1752646284630,-568.71,0.00022054,2]
[372445109,1752646284639,-568.71180759,0.00022054,2]
[372445110,1752646284648,-7.11459961,0.00022054,2]
[372445111,1752646284659,-1179.4,0.00022054,2]
[372445113,1752646397244,2078.779541,0.00030136,120]
[372445115,1752646411407,158.75,0.00013699,2]
[372445118,1752646569633,2923.56,0.0003013,120]
[372445119,1752646742706,500.0,0.0003013,120]
[372445120,1752646810874,150.0,0.00030136,120]
[372445132,1752647167811,-300.0,0.00017999,2]
[372445133,1752647176258,705.0,0.00017999,2]
[372445134,1752647183355,-68157.22,0.00018,2]
[372445135,1752647200031,699.55790929,0.0003,120]
[372445136,1752647216473,-405.46818957,0.00017999,2]
[372445137,1752647216499,-96090.53181043,0.00018,2]
[372445138,1752647225587,273.0,0.0003013,120]
[372445186,1752647271229,-300.0,0.00017999,2]
[372445187,1752647271257,-166818.86,0.00018,2]
[372445188,1752647295796,500.0,8.2e-07,120]
[372445189,1752647312281,500.0,8.2e-07,120]
[372445190,1752647313099,337.93389353,0.000246,120]
[372445191,1752647329759,500.0,8.2e-07,120]
[372445192,1752647336766,635.22280271,0.0003013,120]
[372445193,1752647345086,500.0,8.2e-07,120]
[372445194,1752647362211,500.0,8.2e-07,120]
[372445195,1752647362747,500.0,8.2e-07,120]
[372445196,1752647381715,500.0,8.2e-07,120]
[372445198,1752647384767,4266.0,0.000211,30]
[372445199,1752647384790,5000.0,0.000211,30]
[372445200,1752647384813,5000.0,0.000211,30]
[372445201,1752647384836,5000.0,0.000211,30]
[372445202,1752647385227,734.0,0.000211,30]
[372445203,1752647404610,500.0,8.2e-07,120]
[372445204,1752647420220,500.0,8.2e-07,120]
[372445205,1752647428233,1205.90786754,0.00030136,120]
[372445215,1752647432156,-162.30177289,0.00017902,2]
[372445216,1752647432167,-157.53768893,0.00017902,2]
[372445217,1752647432176,-170.41946818,0.0001799,2]
[372445218,1752647432187,-76.12053182,0.0001799,2]
[372445219,1752647432196,-300.0,0.00017998,2]
[372445220,1752647432206,-947.33675188,0.00017998,2]
[372445221,1752647432217,-252.66324812,0.00017998,2]
[372445222,1752647432226,-382.97446519,0.00017999,2]
[372445223,1752647432236,-171.21399926,0.00017999,2]
[372445224,1752647432245,-500.0,0.00017999,2]
[372445225,1752647432254,-500.0,0.00017999,2]
[372445226,1752647432264,-500.0,0.00017999,2]
[372445227,1752647432273,-284.2923355,0.00017999,2]
[372445228,1752647432282,-208.47167265,0.00017999,2]
[372445229,1752647432293,-291.52832735,0.00017999,2]
[372445230,1752647432302,-500.0,0.00017999,2]
[372445231,1752647432312,-58.47167265,0.00017999,2]
[372445232,1752647432338,-372.21969281,0.00017999,2]
[372445233,1752647432349,-69.30863454,0.00017999,2]
[372445234,1752647432359,-500.0,0.00017999,2]
[372445235,1752647432369,-184.34773157,0.00018,2]
[372445236,1752647432381,-963.2522842,0.00018,2]
[372445237,1752647432392,-515.59959483,0.00018,2]
[372445238,1752647432415,-5151.88877197,0.00018,2]
[372445239,1752647432439,-1362.40018,0.00018,2]
[372445245,1752647432531,-811.02931832,0.00018,2]
[372445247,1752647432543,-3898.56031987,0.00018,2]
[372445249,1752647432554,-321.1542531,0.00018,2]
[372445279,1752647434756,500.0,8.2e-07,120]
[372445280,1752647438079,-950.75729884,0.00018,2]
[372445281,1752647438091,-53191.88356052,0.00018,2]
[372445282,1752647438181,-4347.88911099,0.00018,2]
[372445283,1752647438266,-2878.75763287,0.00018,2]
[372445284,1752647438277,-643356.73709507,0.00018,2]
[372445285,1752647438288,-1000.0,0.00018003,2]
[372445286,1752647438299,-250.0,0.00018003,2]
[372445287,1752647438309,-300.0,0.00018003,2]
[372445288,1752647438319,-1082.0,0.00018105,2]
[372445289,1752647438329,-157.53768886,0.00018383,2]
[372445290,1752647438339,-157.53768886,0.00018863,2]
[372445291,1752647438350,-2631.58017699,0.000189,2]
[372445292,1752647438359,-162.30177286,0.00018949,2]
[372445293,1752647438369,-1082.0,0.00019057,2]
[372445294,1752647438379,-2631.58017696,0.00019072,2]
[372445295,1752647438389,-544.0,0.00019159,2]
[372445296,1752647438399,-518.00006,0.00019159,2]
[372445297,1752647438409,-508.0,0.00019159,2]
[372445298,1752647438419,-528.0,0.00019159,2]
[372445299,1752647438430,-178.28,0.00019178,2]
[372445300,1752647438439,-2631.58017696,0.00019245,2]
[372445301,1752647438449,-2631.58017696,0.00019417,2]
[372445302,1752647438459,-2631.58017696,0.0001959,2]
[372445303,1752647438468,-420.0,0.00019638,2]
[372445304,1752647438478,-1680.0,0.00019734,2]
[372445305,1752647438488,-2631.58017696,0.00019762,2]
[372445306,1752647438497,-250.0,0.00019798,2]
[372445308,1752647438507,-2500.0,0.00019798,2]
[372445310,1752647438517,-2500.0,0.000198,2]
[372445311,1752647438526,-1000.0,0.000198,2]
[372445312,1752647438535,-250.0,0.000198,2]
[372445313,1752647438545,-300.0,0.000198,2]
[372445314,1752647438554,-2500.0,0.000198,2]
[372445315,1752647438563,-1000.0,0.000199,7]
[372445316,1752647438572,-4945.12,0.00019911,2]
[372445317,1752647438581,-2631.58017696,0.00019934,2]
[372445318,1752647438590,-17120.09,0.00019951,2]
[372445319,1752647438599,-162.30177286,0.00019997,2]
[372445320,1752647438608,-1082.0,0.00020061,2]
[372445321,1752647438618,-1000.0,0.00020105,2]
[372445322,1752647438630,-2631.58017696,0.00020107,2]
[372445323,1752647438639,-609.36,0.00020137,2]
[372445325,1752647438649,-2631.58017696,0.00020279,3]
[372445327,1752647438659,-816.16,0.00020425,2]
[372445329,1752647438668,-2631.58017696,0.00020452,3]
[372445331,1752647438679,-2631.58017696,0.00020624,3]
[372445333,1752647438688,-818.76,0.00020646,2]
[372445335,1752647438698,-2631.58017696,0.00020797,4]
[372445337,1752647438707,-162.67,0.00020817,2]
[372445339,1752647438718,-1000.0,0.00020858,2]
[372445341,1752647438728,-207.4,0.00020877,2]
[372445343,1752647438738,-2631.58017696,0.00020969,4]
[372445345,1752647438747,-1500.0,0.00020988,2]
[372445347,1752647438756,-962.0,0.00021,2]
[372445349,1752647438765,-162.30177286,0.00021044,2]
[372445351,1752647438776,-3000.0,0.00021054,7]
[372445353,1752647438785,-3307.43,0.00021056,2]
[372445355,1752647438795,-1082.0,0.00021064,2]
[372445357,1752647438810,-170.16,0.00021094,2]
[372445359,1752647438823,-2631.58017696,0.00021141,4]
[372445361,1752647438838,-2100.0,0.000213,7]
[372445363,1752647438848,-2631.58017696,0.00021314,5]
[372445365,1752647438858,-188.40676598,0.00021315,30]
[372445367,1752647438869,-188.40676598,0.00021315,30]
[372445369,1752647438879,-5000.0,0.00021387,2]
[372445371,1752647438889,-3100.0,0.000214,7]
[372445373,1752647438899,-587.0,0.00021427,2]
[372445375,1752647438908,-2631.58017696,0.00021486,5]
[372445377,1752647438918,-151.0,0.00021487,2]
[372445379,1752647438928,-151.0,0.00021487,2]
[372445381,1752647438938,-600.0,0.00021487,2]
[372445383,1752647438947,-151.0,0.00021487,2]
[372445385,1752647438957,-151.0,0.00021487,2]
[372445387,1752647438966,-500.0,0.00021487,2]
[372445389,1752647438976,-600.0,0.00021487,2]
[372445391,1752647438985,-151.0,0.00021487,2]
[372445393,1752647438995,-500.0,0.00021487,2]
[372445395,1752647439004,-600.0,0.00021487,2]
[372445397,1752647439013,-500.0,0.00021487,2]
[372445399,1752647439026,-151.0,0.00021487,2]
[372445401,1752647439035,-500.0,0.00021487,2]
[372445404,1752647439048,-600.0,0.00021487,2]
[372445405,1752647439058,-500.0,0.00021487,2]
[372445408,1752647439067,-151.0,0.00021487,2]
[372445410,1752647439077,-600.0,0.00021487,2]
[372445412,1752647439086,-500.0,0.00021487,2]
[372445414,1752647439096,-151.0,0.00021487,2]
[372445416,1752647439105,-600.0,0.00021487,2]
[372445418,1752647439114,-500.0,0.00021487,2]
[372445420,1752647439124,-500.0,0.00021487,2]
[372445422,1752647439133,-151.0,0.00021487,2]
[372445423,1752647439143,-500.0,0.00021487,2]
[372445425,1752647439152,-600.0,0.00021487,2]
[372445427,1752647439162,-151.0,0.00021487,2]
[372445430,1752647439172,-500.0,0.00021487,2]
[372445431,1752647439182,-500.0,0.00021487,2]
[372445434,1752647439192,-600.0,0.00021487,2]
[372445436,1752647439203,-151.0,0.00021487,2]
[372445438,1752647439214,-500.0,0.00021487,2]
[372445439,1752647439224,-500.0,0.00021487,2]
[372445442,1752647439234,-600.0,0.00021487,2]
[372445443,1752647439244,-500.0,0.00021487,2]
[372445446,1752647439255,-500.0,0.00021487,2]
[372445448,1752647439264,-600.0,0.00021487,2]
[372445450,1752647439273,-500.0,0.00021487,2]
[372445452,1752647439282,-500.0,0.00021487,2]
[372445454,1752647439292,-500.0,0.00021487,2]
[372445456,1752647439301,-500.0,0.00021487,2]
[372445457,1752647439311,-500.0,0.00021487,2]
[372445459,1752647439321,-500.0,0.00021487,2]
[372445461,1752647439330,-500.0,0.00021487,2]
[372445464,1752647439340,-500.0,0.00021487,2]
[372445466,1752647439349,-500.0,0.00021487,2]
[372445468,1752647439359,-500.0,0.00021487,2]
[372445469,1752647439368,-500.0,0.00021487,2]
[372445471,1752647439378,-500.0,0.00021487,2]
[372445474,1752647439388,-500.0,0.00021487,2]
[372445475,1752647439397,-500.0,0.00021487,2]
[372445477,1752647439407,-500.0,0.00021487,2]
[372445479,1752647439416,-500.0,0.00021487,2]
[372445481,1752647439426,-600.0,0.00021487,2]
[372445483,1752647439435,-500.0,0.00021487,2]
[372445485,1752647439445,-500.0,0.00021487,2]
[372445487,1752647439454,-500.0,0.00021487,2]
[372445489,1752647439464,-600.0,0.00021487,2]
[372445491,1752647439474,-500.0,0.00021487,2]
[372445493,1752647439483,-500.0,0.00021487,2]
[372445495,1752647439493,-600.0,0.00021487,2]
[372445497,1752647439502,-600.0,0.00021487,2]
[372445499,1752647439512,-500.0,0.00021487,2]
[372445501,1752647439521,-600.0,0.00021487,2]
[372445503,1752647439530,-500.0,0.00021487,2]
[372445505,1752647439540,-600.0,0.00021487,2]
[372445507,1752647439549,-500.0,0.00021487,2]
[372445509,1752647439560,-500.0,0.00021487,2]
[372445511,1752647439570,-423.68492096,0.00021487,2]
[372445513,1752647439579,-617.61333493,0.00021487,2]
[372445515,1752647439589,-400.0,0.00021487,2]
[372445517,1752647439598,-6056.7,0.000215,2]
[372445519,1752647439608,-4200.0,0.000215,7]
[372445521,1752647439618,-838.7287696,0.000215,7]
[372445523,1752647439628,-188.40676598,0.00021562,30]
[372445526,1752647439638,-188.40676598,0.00021562,30]
[372445528,1752647439650,-167.6,0.00021584,2]
[372445530,1752647439660,-5200.0,0.000216,7]
[372445532,1752647439670,-623.90205858,0.000216,2]
[372445534,1752647439680,-623.90205851,0.000216,2]
[372445535,1752647439690,-623.90205851,0.000216,2]
[372445537,1752647439700,-623.90205851,0.000216,2]
[372445540,1752647439710,-623.90205851,0.000216,2]
[372445541,1752647439720,-310.33245002,0.00021612,2]
[372445544,1752647439730,-2127.0,0.00021638,2]
[372445546,1752647439742,-2631.58017696,0.00021659,5]
[372445548,1752647439752,-1000.0,0.000217,7]
[372445550,1752647439761,-588.37151977,0.00021717,2]
[372445552,1752647439771,-188.40676598,0.00021781,30]
[372445554,1752647439780,-188.40676598,0.00021781,30]
[372445555,1752647439790,-458.05,0.00021781,2]
[372445557,1752647439801,-172.0,0.00021781,2]
[372445559,1752647439810,-357.21,0.00021781,2]
[372445561,1752647439820,-164.58,0.00021781,2]
[372445564,1752647439830,-1000.0,0.000218,7]
[372445566,1752647439840,-150.0,0.00021802,2]
[372445567,1752647439849,-150.0,0.00021805,2]
[372445569,1752647439859,-150.0,0.00021811,2]
[372445572,1752647439868,-150.0,0.00021816,2]
[372445574,1752647439878,-150.0,0.00021816,2]
[372445576,1752647439887,-157.13513858,0.00021817,2]
[372445578,1752647439897,-1345.85792879,0.00021817,2]
[372445580,1752647439907,-150.0,0.00021821,2]
[372445582,1752647439916,-955.37,0.00021824,2]
[372445583,1752647439926,-3349.0,0.00021824,2]
[372445585,1752647439936,-21350.0,0.00021824,2]
[372445588,1752647439946,-889.0,0.00021824,2]
[372445589,1752647439956,-1166.0,0.00021824,2]
[372445592,1752647439966,-281.78691,0.0002183,2]
[372445593,1752647439976,-2631.58017696,0.00021831,6]
[372445596,1752647439986,-45838.83649737,0.0002184,2]
[372445598,1752647439995,-150.0,0.00021872,2]
[372445600,1752647440005,-150.0,0.0002189,2]
[372445602,1752647440014,-31277.0,0.0002189,2]
[372445604,1752647440024,-1345.85792874,0.00021899,2]
[372445606,1752647440033,-1000.0,0.000219,7]
[372445608,1752647440043,-565.68,0.000219,2]
[372445610,1752647440052,-23969.478489,0.000219,2]
[372445612,1752647440063,-492.82960934,0.00021907,2]
[372445614,1752647440072,-2000.0,0.00021916,2]
[372445616,1752647440082,-2000.0,0.00021916,2]
[372445618,1752647440092,-2000.0,0.00021916,2]
[372445620,1752647440101,-2000.0,0.00021916,2]
[372445622,1752647440111,-2000.0,0.00021916,2]
[372445624,1752647440120,-1395.61936891,0.00021916,2]
[372445626,1752647440130,-150.0,0.00021916,2]
[372445628,1752647440139,-300.0,0.00021916,2]
[372445630,1752647440149,-666.0,0.00021916,2]
[372445632,1752647440158,-838.7287696,0.00021916,2]
[372445634,1752647440168,-210.72748344,0.00021916,2]
[372445636,1752647440178,-458.6951431,0.00021916,2]
[372445638,1752647440187,-160.0,0.00021916,2]
[372445640,1752647440197,-423.74474288,0.00021917,2]
[372445642,1752647440207,-460.0,0.00021917,2]
[372445644,1752647440217,-460.0,0.00021917,2]
[372445646,1752647440227,-460.0,0.00021917,2]
[372445648,1752647440236,-460.0,0.00021917,2]
[372445650,1752647440246,-151.0,0.00021917,2]
[372445652,1752647440255,-151.0,0.00021917,2]
[372445654,1752647440265,-460.0,0.00021917,2]
[372445656,1752647440274,-460.0,0.00021917,2]
[372445658,1752647440283,-461.47069613,0.00021917,2]
[372445660,1752647440293,-460.0,0.00021917,2]
[372445662,1752647440304,-460.0,0.00021917,2]
[372445664,1752647440313,-502.66379358,0.00021917,2]
[372445666,1752647440322,-460.0,0.00021917,2]
[372445668,1752647440332,-460.0,0.00021917,2]
[372445670,1752647440342,-607.76107713,0.00021917,2]
[372445672,1752647440351,-460.0,0.00021917,2]
[372445674,1752647440361,-521.52,0.00021917,2]
[372445676,1752647440370,-461.23154058,0.00021917,2]
[372445678,1752647440380,-460.0,0.00021917,2]
[372445680,1752647440390,-460.0,0.00021917,2]
[372445682,1752647440399,-460.0,0.00021917,2]
[372445684,1752647440409,-462.81431932,0.00021917,2]
[372445686,1752647440418,-525.90682731,0.00021917,2]
[372445688,1752647440428,-460.0,0.00021917,2]
[372445690,1752647440438,-460.0,0.00021917,2]
[372445692,1752647440448,-460.0,0.00021917,2]
[372445694,1752647440458,-460.0,0.00021917,2]
[372445696,1752647440467,-460.0,0.00021917,2]
[372445698,1752647440478,-460.0,0.00021917,2]
[372445700,1752647440488,-436.84232407,0.00021917,2]
[372445702,1752647440497,-460.0,0.00021917,2]
[372445704,1752647440507,-460.0,0.00021917,2]
[372445706,1752647440516,-500.0,0.00021917,2]
[372445708,1752647440526,-500.0,0.00021917,2]
[372445710,1752647440536,-460.0,0.00021917,2]
[372445712,1752647440552,-460.0,0.00021917,2]
[372445714,1752647440568,-460.0,0.00021917,2]
[372445716,1752647440578,-460.0,0.00021917,2]
[372445718,1752647440588,-522.83350123,0.00021917,2]
[372445720,1752647440597,-993.25,0.00021917,2]
[372445722,1752647440606,-657.92,0.00021917,2]
[372445724,1752647440616,-460.64517406,0.00021917,2]
[372445726,1752647440625,-460.82217631,0.00021917,2]
[372445728,1752647440635,-460.0,0.00021917,2]
[372445730,1752647440645,-460.0,0.00021917,2]
[372445733,1752647440654,-915.83,0.00021917,2]
[372445734,1752647440664,-460.0,0.00021917,2]
[372445737,1752647440674,-460.0,0.00021917,2]
[372445739,1752647440684,-460.0,0.00021917,2]
[372445741,1752647440693,-460.0,0.00021917,2]
[372445743,1752647440703,-460.0,0.00021917,2]
[372445744,1752647440712,-555.78,0.00021917,2]
[372445746,1752647440721,-461.84973853,0.00021917,2]